fUST/lending_fUST_20250327
["ID","MTS","AMOUNT","RATE_DAILY","PERIOD"]
[356714125,1743009047337,-151.0,0.00042,120]
[356714126,1743009047346,-151.0,0.00042,110]
[356714127,1743009047355,-151.0,0.00042,110]
[356714128,1743009047364,-369.851904,0.00042,120]
[356714129,1743009047374,-369.851904,0.00042,120]
[356714130,1743009047383,-151.0,0.00042,120]
[356714131,1743009047394,-171.511472,0.00042,120]
[356714132,1743009047404,-231.014049,0.00042,120]
[356714133,1743009047415,-151.0,0.00042,120]
[356714134,1743009047425,-151.0,0.00042,30]
[356714135,1743009047435,-151.0,0.00042,30]
[356714136,1743009047445,-151.0,0.00042,120]
[356714137,1743009047455,-151.0,0.00042,30]
[356714138,1743009047466,-1828.552281,0.00042,2]
[356714139,1743009047476,-1828.552281,0.00042,2]
[356714140,1743009047486,-151.0,0.00042,120]
[356714141,1743009047497,-153.616897,0.00042,120]
[356714142,1743009047507,-151.0,0.00042,120]
[356714143,1743009047518,-151.0,0.00042,120]
[356714144,1743009047528,-151.0,0.00042,120]
[356714145,1743009047539,-600.0,0.0004214,2]
[356714146,1743009047549,-800.0,0.00042197,14]
[356714147,1743009047559,-800.0,0.00042246,14]
[356714148,1743009047569,-800.0,0.00042293,14]
[356714149,1743009047579,-2000.0,0.00042383,2]
[356714150,1743009047590,-266.69613399,0.00042383,2]
[356714151,1743009047600,-462047.56544241,0.0004244,30]
[356714152,1743009047645,-42.34479714,0.0004244,30]
[356714160,1743010035119,-418.40181814,0.00021379,2]
[356714161,1743010035145,-54.35533137,0.00021386,2]
[356714162,1743010042094,-500.0,0.00014416,2]
[356714163,1743010042116,-249.26552224,0.00021386,2]
[356714164,1743010043089,-374.56816276,0.00021386,2]
[356714165,1743010052091,-1073.94360631,0.00021386,2]
[356714193,1743010232359,-3247.86737732,0.00021386,2]
[356714194,1743010232369,-834.83451184,0.00021895,2]
[356714195,1743010232380,-206.28397057,0.000269,4]
[356714196,1743010232390,-206.2839704,0.00027721,4]
[356714197,1743010232400,-206.2839704,0.00028543,5]
[356714198,1743010232410,-206.2839704,0.00029364,5]
[356714199,1743010232419,-206.2839704,0.00030186,5]
[356714200,1743010232429,-1510.6455545,0.00030691,2]
[356714201,1743010232439,-300.0,0.00031006,2]
[356714202,1743010232449,-206.2839704,0.00031007,5]
[356714203,1743010232459,-736.0643405,0.00031443,2]
[356714204,1743010232471,-206.2839704,0.00031829,6]
[356714205,1743010232483,-500.0,0.00032443,2]
[356714206,1743010232493,-206.2839704,0.0003265,6]
[356714207,1743010232503,-206.2839704,0.00033471,6]
[356714208,1743010232513,-206.2839704,0.00034293,6]
[356714209,1743010232523,-206.2839704,0.00035114,7]
[356714210,1743010232534,-1955.17441992,0.0003547,2]
[356714211,1743010232544,-176.17520831,0.00035473,2]
[356714212,1743010232555,-1200.0,0.00035559,2]
[356714213,1743010232567,-163.248,0.00035569,42]
[356714214,1743010232578,-363.24008576,0.00035569,7]
[356714216,1743010232589,-430.47751359,0.00035569,7]
[356714218,1743010232599,-834.83451184,0.0003557,3]
[356714220,1743010232608,-13119.9768119,0.0003557,3]
[356714230,1743010238097,-4867.82260699,0.0003557,3]
[356714255,1743010240565,-24096.10389951,0.0003557,3]
[356714256,1743010240575,-500.0,0.00035573,5]
[356714257,1743010240585,-500.0,0.00035573,2]
[356714258,1743010240595,-460.4252759,0.00035573,2]
[356714259,1743010240604,-500.0,0.00035573,5]
[356714260,1743010240614,-500.0,0.00035573,5]
[356714261,1743010240624,-267.81254225,0.00035573,5]
[356714262,1743010240633,-500.0,0.00035573,5]
[356714263,1743010240643,-500.0,0.00035573,5]
[356714264,1743010240652,-500.0,0.00035573,5]
[356714265,1743010240661,-500.0,0.00035573,5]
[356714266,1743010240671,-500.0,0.00035573,5]
[356714267,1743010240680,-500.0,0.00035573,5]
[356714269,1743010240689,-500.0,0.00035579,7]
[356714271,1743010240699,-453.44013693,0.00035579,7]
[356714272,1743010240708,-44894.73330788,0.0003558,2]
[356714273,1743010240719,-1041.44652036,0.0003558,2]
[356714274,1743010240733,-3910.92031945,0.0003558,2]
[356714283,1743010243407,-499.9967325,0.0003558,2]
[356714284,1743010243419,-4797.93733105,0.0003558,2]
[356714285,1743010243431,-30769.4297269,0.0003558,2]
[356714286,1743010243443,-4625.0000005,0.0003558,2]
[356714287,1743010243464,-16439.1501964,0.0003558,2]
[356714288,1743010243476,-1022.12636978,0.0003558,2]
[356714289,1743010243490,-565.96472567,0.0003558,2]
[356714290,1743010243501,-1000.0,0.0003558,2]
[356714294,1743010246202,-880.55619306,0.0003558,2]
[356714295,1743010246213,-797.37923331,0.0003558,2]
[356714298,1743010246259,-9998.6908919,0.0003558,2]
[356714299,1743010246317,-5104.55944332,0.0003558,2]
[356714300,1743010246376,-258.91,0.0003558,2]
[356714307,1743010352925,99999.94,0.0003,30]
[356714311,1743011249135,-1164.94600404,0.00022567,3]
[356714312,1743011251090,-1335.05399596,0.00022567,3]
[356714313,1743011251112,-2500.0,0.00022576,3]
[356714314,1743011251134,-350.9249168,0.00022589,2]
[356714315,1743011251156,-470.5,0.00024637,15]
[356714316,1743011251179,-1265.55895005,0.000249,4]
[356714317,1743011251200,-1265.55894987,0.00025762,4]
[356714318,1743011251222,-300.0,0.00026623,2]
[356714319,1743011251243,-1265.55894987,0.00026624,4]
[356714320,1743011251266,-1265.55894987,0.00027486,4]
[356714321,1743011251288,-154.95202035,0.00028348,5]
[356714340,1743011432416,-300.0,0.00025203,2]
[356714341,1743011432426,-36258.35708659,0.00025204,10]
[356714342,1743011432472,-38040.28658158,0.00025204,10]
[356714343,1743011432482,-1091.65268947,0.000259,4]
[356714344,1743011432493,-1091.6526892,0.00026728,4]
[356714345,1743011432502,-420.0,0.00027298,2]
[356714346,1743011432511,-1091.6526892,0.00027555,4]
[356714347,1743011432521,-1091.6526892,0.00028383,5]
[356714348,1743011432531,-219.56655601,0.00028587,2]
[356714349,1743011432543,-238.417634,0.00028687,2]
[356714350,1743011432553,-1091.6526892,0.0002921,5]
[356714351,1743011432563,-150.0,0.000293,2]
[356714352,1743011432573,-399.50864151,0.00029565,2]
[356714353,1743011432583,-500.0,0.00029565,2]
[356714355,1743011432593,-587.0,0.00029566,2]
[356714357,1743011432603,-160.0,0.00029833,2]
[356714359,1743011432612,-13667.13697902,0.0002988,2]
[356714361,1743011432622,-160.0,0.00029886,2]
[356714363,1743011432631,-170.45828223,0.00029898,2]
[356714365,1743011432641,-255.87805572,0.00029909,2]
[356714367,1743011432651,-308.05023811,0.00029973,5]
[356714369,1743011432662,-500.0,0.00029973,5]
[356714371,1743011432672,-500.0,0.00029973,5]
[356714373,1743011432681,-500.0,0.00029973,5]
[356714375,1743011432691,-500.0,0.00029973,5]
[356714376,1743011432700,-500.0,0.00029973,5]
[356714377,1743011432710,-500.0,0.00029973,5]
[356714378,1743011432720,-458.6305,0.00029973,2]
[356714380,1743011432730,-138175.482565,0.0002999,2]
[356714382,1743011432741,-834.83451184,0.00029999,10]
[356714384,1743011432751,-39801.04185513,0.0003,15]
[356714386,1743011432760,-1091.6526892,0.00030038,5]
[356714387,1743011432770,-1091.6526892,0.00030866,5]
[356714388,1743011432780,-219.56655594,0.00031603,2]
[356714389,1743011432790,-1091.6526892,0.00031693,6]
[356714390,1743011432800,-403.0,0.00032023,2]
[356714391,1743011432810,-1091.6526892,0.00032521,6]
[356714392,1743011432819,-170.45828222,0.00032634,2]
[356714393,1743011432829,-192.08,0.000331,7]
[356714394,1743011432839,-1091.6526892,0.00033348,6]
[356714395,1743011432848,-160.0,0.00033582,2]
[356714396,1743011432857,-418.40181814,0.00033609,2]
[356714397,1743011432871,-151.0,0.000338,10]
[356714398,1743011432881,-1381.38117721,0.00033807,2]
[356714399,1743011432891,-500.0,0.00033873,5]
[356714400,1743011432900,-485.61133249,0.00033873,5]
[356714401,1743011432910,-500.0,0.00033873,5]
[356714402,1743011432920,-500.0,0.00033873,5]
[356714403,1743011432930,-500.0,0.00033873,5]
[356714404,1743011432939,-205.60053372,0.00033873,5]
[356714405,1743011432950,-500.0,0.00033873,5]
[356714406,1743011432960,-500.0,0.00033873,5]
[356714407,1743011432970,-500.0,0.00033873,5]
[356714408,1743011432979,-500.0,0.00033873,5]
[356714409,1743011432989,-500.0,0.00033873,5]
[356714410,1743011432999,-500.0,0.00033873,5]
[356714411,1743011433009,-512.23480146,0.00033873,5]
[356714412,1743011433018,-500.0,0.00033873,5]
[356714413,1743011433027,-500.0,0.00033873,5]
[356714414,1743011433037,-500.0,0.00033873,5]
[356714415,1743011433046,-500.0,0.00033873,5]
[356714416,1743011433055,-500.0,0.00033873,5]
[356714417,1743011433064,-488.7124287,0.00033896,2]
[356714418,1743011433074,-1200.37650111,0.00033896,2]
[356714419,1743011433083,-108941.53773268,0.00033897,2]
[356714434,1743011438292,-159.3608072,0.00010959,2]
[356714435,1743011438302,-500.0,0.00025203,2]
[356714436,1743011438311,-340.6391928,0.00025203,2]
[356714437,1743011438356,-65.94483863,0.00025203,2]
[356714439,1743011438366,-500.0,0.00025203,2]
[356714440,1743011438375,-500.0,0.00025203,2]
[356714441,1743011438385,-463.4678484,0.00025203,2]
[356714442,1743011438394,-298.19,0.000293,2]
[356714443,1743011438404,-19824.106683,0.00033897,2]
[356714444,1743011438416,-6373.58,0.00033897,2]
[356714449,1743011440561,-850.41025125,0.00033897,2]
[356714450,1743011440616,-324.97025148,0.00033897,2]
[356714451,1743011440627,-1860.87764659,0.00033897,2]
[356714452,1743011440637,-555.71146909,0.00033907,2]
[356714453,1743011440649,-24344.28853091,0.00033907,2]
[356714454,1743011440659,-2200.0,0.0003412,7]
[356714455,1743011440669,-500.0,0.00034173,5]
[356714456,1743011440688,-500.0,0.00034173,5]
[356714457,1743011440698,-500.0,0.00034173,5]
[356714458,1743011440707,-1091.6526892,0.00034176,6]
[356714459,1743011440717,-151.0,0.000344,15]
[356714460,1743011440727,-219.56655594,0.00034619,2]
[356714461,1743011440737,-151.0,0.000349,19]
[356714462,1743011440748,-541.0,0.00034925,2]
[356714463,1743011440757,-1915.0,0.00034925,2]
[356714464,1743011440766,-2263.0,0.00034925,2]
[356714465,1743011440775,-1091.6526892,0.00035003,7]
[356714466,1743011440785,-834.83451184,0.00035071,2]
[356714467,1743011440795,-170.45828222,0.0003537,2]
[356714468,1743011440804,-1000.0,0.00035452,5]
[356714469,1743011440813,-1000.0,0.00035452,5]
[356714470,1743011440949,-1000.0,0.00035452,5]
[356714471,1743011440960,-1000.0,0.00035452,5]
[356714472,1743011440970,-600.0,0.00035459,2]
[356714473,1743011440980,-52028.87996839,0.0003546,3]
[356714474,1743011440992,-29722.55521919,0.0003546,3]
[356714475,1743011441003,-5039.67479692,0.0003546,3]
[356714476,1743011441015,-1985.98422789,0.0003546,3]
[356714483,1743011443472,-20194.62705913,0.0003546,3]
[356714484,1743011443530,-6803.56712156,0.0003546,3]
[356714485,1743011443592,-1770.05853245,0.0003546,3]
[356714486,1743011443649,-1250.0,0.0003546,3]
[356714489,1743011446546,-4841.98328235,0.0003546,3]
[356714490,1743011446558,-13328.94048968,0.0003546,3]
[356714491,1743011446570,-1209.21186744,0.0003546,3]
[356714492,1743011446579,-12458.93820146,0.0003546,3]
[356714493,1743011446589,-159.631483,0.0003547,14]
[356714494,1743011446598,-160.678844,0.0003547,14]
[356714495,1743011446608,-151.0,0.0003547,14]
[356714496,1743011446618,-2036.035952,0.0003547,2]
[356714497,1743011446627,-2036.035952,0.0003547,2]
[356714498,1743011446636,-342.976158,0.0003547,14]
[356714499,1743011446646,-151.0,0.0003547,14]
[356714500,1743011446655,-342.976158,0.0003547,14]
[356714501,1743011446664,-151.0,0.0003547,14]
[356714502,1743011446675,-151.0,0.0003547,14]
[356714503,1743011446685,-265.584538,0.0003547,14]
[356714504,1743011446695,-151.0,0.0003547,14]
[356714505,1743011446704,-834.83451184,0.0003547,3]
[356714506,1743011446714,-61544.13667078,0.0003547,3]
[356714508,1743012335112,-271.8,0.000288,2]
[356714509,1743012430109,-482.43984026,0.000288,2]
[356714510,1743012440084,-238.417635,0.00030703,2]
[356714511,1743012440105,-1014.0164613,0.00031284,2]
[356714512,1743012440127,-300.0,0.00032586,2]
[356714513,1743012440148,-607.29049093,0.00032587,2]
[356714537,1743012632659,-1241.83197754,0.00031948,2]
[356715026,1743012638519,-4850.68326496,0.00031948,2]
[356715027,1743012638529,-4392.70950907,0.00032587,2]
[356715028,1743012638538,-205.26029009,0.00032686,2]
[356715029,1743012638550,-24900.0,0.00032687,2]
[356715030,1743012638559,-156.83325426,0.00032821,2]
[356715031,1743012638570,-206.87030804,0.00032921,7]
[356715032,1743012638580,-834.83451184,0.00033492,2]
[356715033,1743012638590,-160.0,0.00033519,2]
[356715034,1743012638599,-1804.0069606,0.00033646,2]
[356715035,1743012638609,-2653.09548582,0.000339,6]
[356715036,1743012638619,-997.59512963,0.00033915,2]
[356715037,1743012638631,-577.47512202,0.00033915,2]
[356715038,1743012638642,-913.68013903,0.00033915,2]
[356715039,1743012638653,-579.77758082,0.00033915,2]
[356715040,1743012638663,-154.755,0.00034444,38]
[356715041,1743012638671,-1500.58988188,0.00034452,6]
[356715042,1743012638683,-1152.50560394,0.00034452,6]
[356715043,1743012638693,-3504.584,0.00034841,7]
[356715044,1743012638702,-1709.51738846,0.00034925,2]
[356715078,1743012640784,-205.48261154,0.00034925,2]
[356715080,1743012640794,-925.782,0.00034925,2]
[356715082,1743012640804,-500.0,0.00034973,5]
[356715084,1743012640813,-500.0,0.00034973,5]
[356715086,1743012640822,-500.0,0.00034973,2]
[356715088,1743012640831,-500.0,0.00034973,5]
[356715090,1743012640841,-500.0,0.00034973,5]
[356715092,1743012640850,-454.79689335,0.00034973,5]
[356715094,1743012640859,-418.40181814,0.00034979,2]
[356715096,1743012640870,-500.0,0.00034989,7]
[356715098,1743012640879,-339.99542579,0.00034989,7]
[356715100,1743012640889,-82729.46800828,0.0003499,2]
[356715104,1743012640908,-30920.26778218,0.0003499,2]
[356715212,1743012642044,385.93516238,0.0003,30]
[356715405,1743012643791,-502.44318967,0.0003499,2]
[356715412,1743012643845,-539.43999999,0.0003499,2]
[356715686,1743012646625,-39166.52953459,0.0003499,2]
[356715693,1743012646678,-883.61058526,0.0003499,2]
[356715695,1743012646690,-1187.87,0.0003499,2]
[356716680,1743013642150,-500.0,0.0001865,2]
[356716681,1743013642171,-160.0,0.0003178,2]
[356716682,1743013642192,-62.58295404,0.00031848,2]
[356716683,1743013644098,-1083.04384608,0.00031848,2]
[356716684,1743013647106,-49.22744568,0.00031848,2]
[356716685,1743013647128,-423.52970383,0.00033246,2]
[356716686,1743013648092,-76.47029617,0.00033246,2]
[356716687,1743013648115,-476.61350904,0.00033246,2]
[356716692,1743013750120,-1276.23416392,0.00015,2]
[356716693,1743013772108,-26.69651546,0.00015,2]
[356716694,1743013772129,-153.56059181,0.00019788,2]
[356716714,1743013831831,-347.43940611,0.00019788,2]
[356716715,1743013831841,-1309.90983776,0.00033246,2]
[356716716,1743013831851,-347.66355187,0.00033246,2]
[356716717,1743013831860,-332.74299465,0.00033346,2]
[356716718,1743013831874,-732.9768744,0.00033346,2]
[356716719,1743013831885,-3942.0032134,0.00033346,2]
[356716958,1743013840022,-665.81705216,0.00033346,2]
[356716981,1743013845740,-6817.33,0.00033346,2]
[356716984,1743014827127,-2500.0,0.00022558,3]
[356716985,1743014827151,-2500.0,0.00024483,3]
[356716986,1743014827174,-470.5,0.00025605,15]
[356716987,1743014827196,-167.696372,0.000322,2]
[356716988,1743014827219,-400.0,0.00032899,2]
[356716989,1743014827243,-3196.85310367,0.000329,6]
[356716990,1743014843095,-350.9249168,0.00023598,2]
[356716991,1743014843117,-397.70841571,0.000329,6]
[356716992,1743014843138,-156.83325424,0.00033299,2]
[356716993,1743014843159,-251.28920149,0.000333,120]
[356717017,1743015031992,-1106.22864206,0.000333,120]
[356717018,1743015032003,-764.83125231,0.000333,120]
[356717019,1743015032012,-156.83325424,0.000333,2]
[356717020,1743015032024,-200.0,0.0003335,2]
[356717021,1743015032035,-207.62939236,0.00033351,7]
[356717022,1743015032044,-500.0,0.00033351,7]
[356717023,1743015032053,-500.0,0.00033351,7]
[356717024,1743015032061,-265.88649981,0.00033351,7]
[356717025,1743015032072,-244.35621435,0.00033352,2]
[356717026,1743015032082,-600.18825056,0.00033352,2]
[356717027,1743015032091,-24900.0,0.00033352,2]
[356717028,1743015032100,-500.0,0.000334,5]
[356717029,1743015032111,-362.19133297,0.000334,5]
[356717030,1743015032120,-200.3500563,0.000334,5]
[356717031,1743015032129,-259.018139,0.000334,5]
[356717033,1743015032139,-500.0,0.000334,5]
[356717034,1743015032148,-502.20402638,0.000334,5]
[356717035,1743015032157,-571.66048584,0.000334,5]
[356717037,1743015032167,-209.95442237,0.000334,5]
[356717039,1743015032176,-403.91601673,0.000334,5]
[356717041,1743015032188,-96.08398327,0.000334,5]
[356717043,1743015032198,-206.38984345,0.000334,5]
[356717044,1743015032209,-293.61015655,0.000334,5]
[356717045,1743015032218,-810.21005594,0.000334,2]
[356717046,1743015032230,-384.282432,0.000334,2]
[356717061,1743015037788,-7107.68419519,0.000334,2]
[356717062,1743015037798,-3474.74280228,0.000339,6]
[356717063,1743015037808,-834.83451184,0.00034002,2]
[356717064,1743015037818,-418.40181814,0.00034029,2]
[356717065,1743015037827,-1500.0,0.00034311,90]
[356717066,1743015037836,-501.70936986,0.000344,5]
[356717067,1743015037848,-270.20224806,0.000344,5]
[356717068,1743015037858,-265.40249465,0.000344,5]
[356717069,1743015037867,-500.0,0.0003445,5]
[356717070,1743015037877,-500.0,0.0003445,5]
[356717071,1743015037886,-262.79537135,0.0003445,5]
[356717072,1743015037896,-379.5057343,0.0003445,5]
[356717073,1743015037907,-259.22698279,0.0003445,5]
[356717074,1743015037916,-500.0,0.0003445,5]
[356717075,1743015037926,-637.822513,0.0003445,5]
[356717076,1743015037935,-500.0,0.0003445,5]
[356717077,1743015037944,-500.0,0.0003445,5]
[356717079,1743015037953,-500.0,0.0003445,5]
[356717080,1743015037962,-500.0,0.0003445,5]
[356717081,1743015037971,-505.90110732,0.0003445,5]
[356717082,1743015037980,-3474.742802,0.00034452,6]
[356717083,1743015037990,-154.755,0.00034619,39]
[356717084,1743015037999,-500.0,0.0003466,5]
[356717085,1743015038008,-500.0,0.0003466,5]
[356717086,1743015038017,-168.03758605,0.00034673,2]
[356717087,1743015038029,-168.03758604,0.00034749,2]
[356717088,1743015038038,-500.0,0.0003475,7]
[356717089,1743015038047,-227.35755062,0.0003475,7]
[356717090,1743015038056,-1200.0,0.0003475,2]
[356717091,1743015038067,-2394.23072414,0.00034751,2]
[356717103,1743015043074,-1223.11065515,0.00034111,90]
[356717104,1743015043085,-291.13283178,0.00034111,90]
[356717208,1743015045997,-201.17420057,0.00034111,90]
[356717209,1743015046006,-58399.04594919,0.00034751,2]
[356717212,1743015046017,-1437.0,0.00034751,2]
[356717216,1743015046050,-22013.35808938,0.00034751,2]
[356717222,1743015945124,-271.8,0.00033216,2]
[356717223,1743016026109,-228.2,0.00033216,2]
[356717224,1743016026131,-278.25415164,0.00033216,2]
[356717225,1743016045195,-754.23984026,0.00025688,2]
[356717226,1743016045218,-329.03633929,0.00033216,2]
[356717227,1743016045240,-400.0,0.00033315,2]
[356717228,1743016045262,-1383.98089653,0.00033316,2]
[356717326,1743016232205,-349.0,0.00033315,2]
[356717328,1743016232215,-611.68538111,0.00033316,2]
[356717340,1743016232341,-300.0,0.00033316,2]
[356717342,1743016232353,-1921.51742215,0.00033316,2]
[356717345,1743016232365,-836.55862403,0.00033316,2]
[356717347,1743016232377,-1100.0,0.00033316,2]
[356717352,1743016232422,-444.32982053,0.00033316,2]
[356717559,1743016240515,-416.20123595,0.00033188,2]
[356717563,1743016240532,-24483.79876405,0.00033188,2]
[356717566,1743016240541,-418.40181814,0.00034209,2]
[356717569,1743016240551,-834.83451184,0.00034209,2]
[356717572,1743016240560,-500.0,0.000345,7]
[356717575,1743016240569,-1043.42195747,0.000345,7]
[356717578,1743016240579,-1200.0,0.000345,120]
[356717581,1743016240588,-326.78025791,0.00034561,2]
[356717584,1743016240598,-1372.32401352,0.00034561,2]
[356717587,1743016240607,-168.03758604,0.00034573,2]
[356717590,1743016240617,-509.15028544,0.0003465,7]
[356717593,1743016240627,-397.74016841,0.0003465,7]
[356717596,1743016240636,-244.35621435,0.0003465,2]
[356717599,1743016240645,-300.09412528,0.0003465,2]
[356717602,1743016240655,-54569.06029756,0.00034651,2]
[356717631,1743016240906,-318.88754691,0.00034651,2]
[356717632,1743016240917,-318.50112971,0.00034651,2]
[356717633,1743016240929,-1569.2320254,0.00034651,2]
[356717637,1743016241067,-69574.41993238,0.00034651,2]
[356717868,1743016243286,-2000.0,0.00034651,2]
[356717872,1743016243311,-348.00009725,0.00034651,2]
[356717959,1743016246134,-3000.0,0.00034651,2]
[356717960,1743016246242,-20167.81232589,0.00034651,2]
[356719051,1743017228121,-472.75714951,0.00032759,2]
[356719052,1743017230103,-722.09709629,0.00032759,2]
[356719053,1743017230129,-368.31794401,0.00032859,2]
[356719054,1743017231112,-784.50113229,0.00032859,2]
[356719055,1743017239106,-500.0,0.00014163,2]
[356719056,1743017239129,-200.9700738,0.00032859,2]
[356719063,1743017350107,-206.01159091,0.000125,2]
[356719064,1743017350130,-1263.98840909,0.00015,2]
[356719093,1743017432463,-38.94227029,0.00015,2]
[356719094,1743017432473,-153.56059181,0.00019788,2]
[356719095,1743017432483,-1181.7223759,0.00029696,2]
[356719096,1743017432492,-160.0,0.00032696,2]
[356719097,1743017432502,-12834.02803539,0.00032719,2]
[356719103,1743017438271,-1563.55154748,0.00032719,2]
[356719120,1743017443700,-6036.60268522,0.00032719,2]
[356719121,1743017443756,-473.35012174,0.00032719,2]
[356719201,1743017446372,-3992.46761017,0.00032719,2]
[356719203,1743017446382,-156.8564044,0.00032859,2]
[356719205,1743017446392,-3396.2861241,0.000329,6]
[356719207,1743017446401,-238.417635,0.00033174,2]
[356719209,1743017446410,-1014.0164613,0.00033224,2]
[356719211,1743017446419,-3396.28612405,0.00033486,6]
[356719213,1743017446429,-542.65633308,0.00033899,2]
[356719214,1743017446438,-173.17708104,0.00033899,7]
[356719216,1743017446448,-500.0,0.000339,2]
[356719217,1743017446458,-476.61350904,0.000339,2]
[356719219,1743017446468,-10000.0,0.00034,30]
[356719221,1743017446477,-834.83451184,0.00034,30]
[356719222,1743017446487,-3396.28612405,0.00034072,6]
[356719224,1743017446496,-418.40181814,0.00034176,2]
[356719226,1743017446506,-834.83451184,0.00034198,2]
[356719228,1743017446515,-1372.32401352,0.00034473,2]
[356719230,1743017446524,-552.47777884,0.00034499,7]
[356719231,1743017446533,-28836.97595646,0.000345,30]
[356719490,1743017697324,1300.0,0.0003,30]
[356719492,1743017782362,305.0,0.0003,30]
[356719501,1743018426135,-2500.0,0.00024648,3]
[356719502,1743018426161,-2500.0,0.00024657,3]
[356719503,1743018426183,-470.5,0.00026607,15]
[356719504,1743018426204,-179.74832365,0.00029232,3]
[356719505,1743018426225,-3915.35706521,0.00031346,2]
[356719506,1743018427085,-165.54224137,0.00031346,2]
[356719507,1743018447117,-350.9249168,0.00021837,2]
[356719508,1743018447141,-799.19679665,0.00031346,2]
[356719566,1743018632554,-400.0,0.00031345,2]
[356719567,1743018632563,-4270.86618595,0.00031346,2]
[356719578,1743018632659,-1829.34367484,0.00031346,2]
[356719581,1743018632670,-947.50524194,0.00031346,2]
[356719586,1743018632713,-272.07162368,0.00031346,2]
[356719648,1743018638478,-3614.9075082,0.00031346,2]
[356719649,1743018638533,-625.97698097,0.00031346,2]
[356719650,1743018638545,-6696.90015969,0.00031346,2]
[356719659,1743018640740,-1198.32497196,0.00031346,2]
[356719660,1743018640846,-564.00754954,0.00031346,2]
[356719661,1743018640857,-232.75505558,0.00031401,2]
[356719677,1743018643613,-17.24494442,0.00031401,2]
[356719678,1743018643623,-213.590792,0.00032787,2]
[356719679,1743018643633,-296.77530618,0.00033042,2]
[356719680,1743018643645,-1260.22751922,0.00033042,2]
[356719710,1743018646864,-1062.84504321,0.00033042,2]
[356719711,1743019446083,-350.0,0.00027,3]
[356719712,1743019556142,-271.8,0.00027,3]
[356719713,1743019648105,-213.03451184,0.00027,3]
[356719714,1743019648128,-300.0,0.00028999,2]
[356719715,1743019648149,-12.87123201,0.00029,7]
[356719716,1743019751107,-1004.7846118,0.00028049,2]
[356719717,1743019751131,-494.42844819,0.000289,2]
[356719718,1743019751152,-300.0,0.00028999,2]
[356719719,1743019751175,-271.54383111,0.00029,2]
[356719768,1743019832813,-28.55029416,0.00029,2]
[356719769,1743019832822,-273.44970584,0.00029,7]
[356719770,1743019832834,-5392.0186476,0.00029,7]
[356719771,1743019832845,-3924.93765435,0.00029,7]
[356719772,1743019832866,-5890.56314952,0.00029,7]
[356719773,1743019832875,-2339.24620291,0.00029,7]
[356719774,1743019832923,-13154.59418641,0.00029,7]
[356719775,1743019832933,-418.40181814,0.00029,7]
[356719776,1743019832943,-834.83451184,0.00029,7]
[356719777,1743019832952,-500.0,0.00029,5]
[356719778,1743019832961,-500.0,0.00029,5]
[356719779,1743019832971,-500.0,0.00029,5]
[356719780,1743019832980,-298.50091296,0.00029,5]
[356719781,1743019832992,-337.87592255,0.00029,5]
[356719782,1743019833002,-182.994512,0.00029296,2]
[356719783,1743019833011,-182.994512,0.00029882,2]
[356719785,1743019833020,-226.20057646,0.00029899,2]
[356719786,1743019833029,-1068.35598772,0.000299,5]
[356719817,1743019838536,-2288.32093513,0.000299,5]
[356719819,1743019838547,-471.54538709,0.0003,10]
[356719821,1743019838556,-182.994512,0.00030468,2]
[356719823,1743019838566,-159.99781525,0.0003059,5]
[356719825,1743019838579,-3196.67910751,0.0003059,5]
[356719827,1743019838589,-471.54538709,0.00031,10]
[356719829,1743019838599,-3356.67692276,0.00031279,6]
[356719831,1743019838608,-3356.67692276,0.00031969,6]
[356719833,1743019838618,-471.54538709,0.00032,10]
[356719835,1743019838627,-3356.67692276,0.00032659,6]
[356719837,1743019838637,-471.54538709,0.00033,10]
[356719839,1743019838647,-2940.03693147,0.00033112,2]
[356719841,1743019838658,-2000.0,0.00033112,2]